Cogmind - Beta 10 @@@ ROGUE MODE // 2020.09.15 @ 20:57:35 Player: Torako Result: Self-destructed Performance ------------- Evolutions (5) 2500 Regions Visited (14) 2800 Robots Destroyed (82) 410 Value Destroyed (2426) 2426 Prototype IDs (243) 4860 Alien Tech Used (1) 200 Bonus (3470) 3470 TOTAL SCORE: 16666 Bonus ------- Follower Combat Kills 40 Aligned with FarCom 300 Met Data Miner 300 Used Data Conduit 3000 Pursued by Intercept 500 Friendly Fire -670 Cogmind --------- Core Integrity 673/1000 Matter 130/300 Energy 165/170 System Corruption 4% Temperature Cool (79) Movement Flying (360) Ox5 Location -5/Factory Parts ------- > --- POWER (1) -------- Light Antimatter Reactor > --- PROPULSION (3) --- Cooled VTOL Module Cooled VTOL Module Experimental Cesium-ion Thruster > --- UTILITY (12) ----- Improved Cooling System Gravity Neutralizing Apparatus Advanced Signal Interpreter Experimental Targeting Computer Advanced Weapon Cycler Improved Hacking Suite System Mapper System Shield System Shield > --- WEAPON (2) ------- Wave Gun 8R-AWN's Boregun > --- INVENTORY (4) ---- Light Angular Momentum Engine Long-range Proton Cannon Master Tearclaws Peak State ------------ > --- POWER ------------ Light Angular Momentum Engine > --- PROPULSION ------- Cooled VTOL Module Cooled VTOL Module Experimental Cesium-ion Thruster > --- UTILITY ---------- Experimental Heat Sink Improved Cooling System Improved Cooling System Gravity Neutralizing Apparatus Experimental Sensor Array Advanced Signal Interpreter Experimental Targeting Computer Advanced Weapon Cycler Improved Hacking Suite System Mapper System Shield System Shield > --- WEAPON ----------- AWS/Gauss > --- INVENTORY -------- Cooled VTOL Module 8R-AWN's Boregun Master Tearclaws [Rating: 104] Favorites ----------- Power Reinforced Fission Core Engine Light Angular Momentum Engine Power Core Reinforced Fission Core Reactor Light Antimatter Reactor Propulsion Armored Wheel Treads Improved Medium Treads Leg Advanced Myomer Leg Wheel Armored Wheel Flight Unit Cooled VTOL Module Utility High-capacity Storage Unit Device Gravity Neutralizing Apparatus Storage High-capacity Storage Unit Processor Experimental Targeting Computer Hackware System Shield Protection Medium Armor Plating Weapon Autogun Energy Gun Advanced Beam Rifle Energy Cannon Heavy Plasma Cannon Ballistic Gun Autogun Launcher Mini Grenade Launcher Special Weapon Plasma Cutter Slashing Weapon Master Tearclaws Build | -11 -10 -10 -9 -9 -9 -8 -8 -7 -7 -7 -7 -6 -6 -5 ------- Run | Scr Mat Min Mat Min Exi Min Mat Fac Low Low Dat Pro Fac Fac Slots Evolved 10 | . . . 2 . . . 2 2 . . . . 2 2 Power . | . . . . . . . . . . . . . . . Propulsion . | . . . . . . . . . . . . . . . Utility 10 | . . . 2 . . . 2 2 . . . . 2 2 Weapon . | . . . . . . . . . . . . . . . Parts Attached 144 | 9 2 4 4 8 19 3 6 16 14 . 4 4 29 22 Power 10 | 2 . 1 . . 1 . . . 1 . . . 3 2 Engine 6 | 2 . . . . . . . . 1 . . . 2 1 Core 3 | . . 1 . . 1 . . . . . . . 1 . Reactor 1 | . . . . . . . . . . . . . . 1 Propulsion 32 | 3 . . 2 2 1 3 1 3 3 . . 1 8 5 Treads 7 | . . . . 2 . . . . 2 . . 1 2 . Leg 5 | . . . . . 1 1 . . 1 . . . 2 . Wheel 11 | 3 . . 2 . . 2 1 2 . . . . 1 . Hover . | . . . . . . . . . . . . . . . Flight 9 | . . . . . . . . 1 . . . . 3 5 Utility 55 | 2 . 3 2 2 8 . 3 8 4 . . 3 13 7 Device 16 | . . 1 . . 2 . 1 2 . . . 1 5 4 Storage 14 | 2 . 2 . . 3 . . 2 . . . . 5 . Processor 4 | . . . . . 1 . 1 1 . . . . 1 . Hackware 6 | . . . . . . . . . . . . 1 2 3 Protection 15 | . . . 2 2 2 . 1 3 4 . . 1 . . Artifact . | . . . . . . . . . . . . . . . Weapon 47 | 2 2 . . 4 9 . 2 5 6 . 4 . 5 8 Energy Gun 14 | 1 . . . . . . 2 4 2 . 1 . 2 2 Energy Cannon 4 | . . . . . . . . . 1 . . . 2 1 Ballistic Gun 20 | 1 2 . . 4 6 . . . 2 . 1 . . 4 Ballistic Cannon . | . . . . . . . . . . . . . . . Launcher 4 | . . . . . 2 . . 1 1 . . . . . Special Weapon 3 | . . . . . 1 . . . . . 1 . 1 . Impact Weapon . | . . . . . . . . . . . . . . . Slashing Weapon 2 | . . . . . . . . . . . 1 . . 1 Piercing Weapon . | . . . . . . . . . . . . . . . Special Melee Weapon . | . . . . . . . . . . . . . . . Unidentified Prototypes 13 | . . 1 . . 6 . 1 3 1 . . 1 . . Parts Lost 21 | . . . . 2 6 . . . 3 . . 1 5 4 Power 1 | . . . . . 1 . . . . . . . . . Propulsion 7 | . . . . . 2 . . . 1 . . . 3 1 Utility 8 | . . . . . 3 . . . 1 . . 1 . 3 Weapon 5 | . . . . 2 . . . . 1 . . . 2 . Highest Loss Streak 6 | . . . . 2 6 . . . 3 . . 1 3 3 Average Slot Usage (%) 94 | . 100 98 100 99 83 90 96 100 99 100 100 100 97 93 Engine 2 | . 14 7 . . . . . . 3 7 7 7 3 4 Core 5 | . . 6 11 11 10 11 9 7 3 . . . 2 . Treads 6 | . . . . 12 14 . . . 1 14 14 14 8 . Leg 2 | . . . . . 3 12 . . 3 . . . 4 . Wheel 7 | . 28 28 22 9 . . 18 14 10 7 7 7 3 . Flight 1 | . . . . . . . . . . . . . . 15 Device 10 | . . . . . 1 . 4 15 14 14 14 15 16 27 Storage 15 | . 28 26 22 22 12 22 18 18 18 14 14 14 12 . Processor 9 | . . . . . 3 11 16 15 14 14 14 14 13 11 Hackware 4 | . . . . . . . . . . . . 3 16 25 Protection 11 | . . . 22 22 20 11 12 10 10 14 14 9 . . Energy Gun 4 | . 2 . . . . . 9 14 6 . 1 7 6 . Energy Cannon 1 | . . . . . . . . . 3 7 3 . 3 . Ballistic Gun 9 | . 26 28 22 21 14 22 8 . 3 7 4 7 2 3 Naked Turns . | . . . . . . . . . . . . . . . Heaviest Build 104 | 17 19 19 33 33 95 92 100 104 97 92 92 87 80 39 Greatest Support 72 | 26 20 20 32 40 40 43 22 34 34 24 24 72 72 30 Greatest Overweight (x) 9 | 1 . . 1 1 3 9 4 4 4 3 3 3 6 5 Average Overweight (x) 1 | . . . 1 . . 2 4 2 2 3 3 2 3 . Largest Inventory Capacity 20 | 8 8 8 8 8 20 20 20 20 20 18 18 18 20 18 Average Capacity 14 | 5 8 7 8 8 11 20 20 19 19 18 18 18 17 4 Most Carried 20 | 7 8 8 8 8 14 17 20 20 20 18 18 18 18 18 Average Carried 12 | 4 7 7 7 7 6 14 19 18 18 18 18 17 17 4 Final Capacity 20 | 8 8 8 8 8 20 20 20 20 18 18 18 18 18 4 Final Carried 20 | 7 8 8 8 8 14 17 20 19 18 18 18 18 18 4 Class Distribution -------------------- 39% | Scavenger-Mutant 22% | Mutant 17% | Hauler-Mutant 10% | Hacker-Mutant 5% | Wizard-Mutant Dominant Class ---------------- Mutant | -10/Materials Mutant | -10/Mines Mutant | -9/Materials Mutant | -9/Mines Mutant | -9/Exiles Hauler-Mutant | -8/Mines Hauler-Mutant | -8/Materials Scavenger-Mutant | -7/Factory Scavenger-Mutant | -7/Lower Caves Scavenger-Mutant | -7/Lower Caves Scavenger-Mutant | -7/Data Miner Scavenger-Mutant | -6/Proximity Caves Hacker-Mutant | -6/Factory Wizard-Mutant | -5/Factory Resources | -11 -10 -10 -9 -9 -9 -8 -8 -7 -7 -7 -7 -6 -6 -5 ----------- Run | Scr Mat Min Mat Min Exi Min Mat Fac Low Low Dat Pro Fac Fac Matter Collected 2453 | 295 . 92 44 360 250 283 229 160 118 . . 197 277 148 Remotely . | . . . . . . . . . . . . . . . Salvage Created 3459 | 80 . 92 99 270 138 400 289 723 274 . . 296 385 413 Parts 175 | 6 . 5 8 26 7 22 13 27 17 . . 11 20 13 Haulers Intercepted 4 | . . . 1 . . . 1 2 . . . . . . Recyclers Shooed 3 | 1 . . . 1 . 1 . . . . . . . . Parts Field Recycled . | . . . . . . . . . . . . . . . Retrieved Matter . | . . . . . . . . . . . . . . . Parts Self-Destructed 12 | . . . . . . . . . 4 2 . 6 . . Prevented 12 | . . . . . . . . . 12 . . . . . Kills | -11 -10 -10 -9 -9 -9 -8 -8 -7 -7 -7 -7 -6 -6 -5 ------- Run | Scr Mat Min Mat Min Exi Min Mat Fac Low Low Dat Pro Fac Fac Combat Hostiles Destroyed 64 | . . 3 1 13 4 6 7 11 4 . . 5 6 4 Guns 59 | . . 3 1 13 1 6 7 11 4 . . 5 4 4 Cannons 2 | . . . . . . . . . . . . . 2 . AOE 3 | . . . . . 3 . . . . . . . . . Classes Destroyed 15 | 2 . 2 2 . 1 2 . 3 1 . . 1 1 . Worker 1 | . . . . . . 1 . . . . . . . . Tunneler 2 | 1 . . . . . 1 . . . . . . . . Hauler 4 | . . . 1 . . . 1 2 . . . . . . Recycler 4 | 1 . . . . . 2 . . . . . . . 1 Operator 1 | . . . . . . . . . . . . . 1 . Watcher 2 | . . . . . . . . 1 . . . . 1 . Swarmer 18 | . . 1 . 10 . 3 4 . . . . . . . Grunt 25 | . . 2 . 1 . 2 . 9 2 . . 2 3 4 Brawler 2 | . . . . . . . . 1 1 . . . . . Duelist 1 | . . . . . . 1 . . . . . . . . Sentry 8 | . . . 1 2 . . 3 . . . . 1 1 . Programmer 3 | . . . . . . . . 1 . . . . 2 . Behemoth 2 | . . . . . . . . . 1 . . 1 . . Master Thief 1 | . . . . . . . . . . . . 1 . . Assembled 7 | . . . . . 7 . . . . . . . . . Best Kill Streak 5 | 2 . 2 1 4 3 5 4 5 3 . . 4 3 5 Combat Bots Only 4 | . . 2 1 4 3 3 4 4 3 . . 4 3 4 Max Kills in Single Turn 4 | 1 . 1 1 1 4 1 2 1 1 . . 1 1 1 Gunslinging 1 | . . . . . . . 1 . . . . . . . Exploded 3 | . . . . . 3 . . . . . . . . . Melee . | . . . . . . . . . . . . . . . Uniques/NPCs Destroyed 1 | . . . . . 1 . . . . . . . . . 8R-AWN (-9/Exiles) Combat | -11 -10 -10 -9 -9 -9 -8 -8 -7 -7 -7 -7 -6 -6 -5 -------- Run | Scr Mat Min Mat Min Exi Min Mat Fac Low Low Dat Pro Fac Fac Damage Taken 5639 | . . 199 111 655 715 194 227 384 809 . . 772 829 744 Core 985 | . . 29 . 109 76 81 29 13 140 . . 32 149 327 Absorbed by Shields . | . . . . . . . . . . . . . . . Core Remaining (%) 78 | 100 . 88 . . . 33 94 . . . . 73 82 . Volleys Fired 280 | 5 1 15 7 38 10 30 17 41 50 . 1 20 25 20 Largest 2 | 2 2 2 2 2 2 2 2 2 2 . 1 2 2 2 Hottest 165 | 70 46 46 46 46 46 46 122 122 110 . . 90 165 111 Shots Fired 547 | 10 2 30 14 68 60 60 34 82 67 . 1 38 49 32 Gun 503 | 10 2 30 14 68 51 60 34 82 47 . . 38 37 30 Cannon 32 | . . . . . . . . . 19 . . . 11 2 Launcher 6 | . . . . . 5 . . . 1 . . . . . Special 6 | . . . . . 4 . . . . . 1 . 1 . Kinetic 302 | 5 2 30 14 68 51 60 26 . 5 . . 20 3 18 Thermal 204 | 5 . . . . 4 . 8 82 32 . . 18 43 12 Explosive 5 | . . . . . 5 . . . . . . . . . Electromagnetic 34 | . . . . . . . . . 30 . . . 2 2 Robot Hit Streak 32 | 3 3 10 4 5 32 12 13 18 25 . 12 18 13 20 Robot Miss Streak 5 | 1 1 4 2 4 2 3 5 2 1 . . 1 1 3 Penetration Max 1 | . . . . . . . . . . . . . . 1 Secondary Targets 8 | . . . . 2 . 1 2 1 1 . . 1 . . Max Gunslinging Chain 1 | . . . . 1 . 1 1 1 1 . . 1 . . Autonomous 49 | . . . . . 49 . . . . . . . . . Shots Hit Robots 398 | 7 1 21 9 37 49 46 23 59 46 . 1 34 40 25 Core Hits 159 | 3 . 5 6 16 21 17 11 28 17 . . 11 13 11 Critical Hits 7 | . . . . 1 . . . . . . . . . 6 Critical Kills 3 | . . . . . . . . . . . . . . 3 Critical Parts Destroyed 4 | . . . . 1 . . . . . . . . . 3 Melee Attacks 4 | . . . . . . . . . . . . . . 4 Impact . | . . . . . . . . . . . . . . . Slashing 4 | . . . . . . . . . . . . . . 4 Piercing . | . . . . . . . . . . . . . . . Sneak Attacks 1 | . . . . . . . . . . . . . . 1 Combat Hostiles . | . . . . . . . . . . . . . . . Follow-up Attacks . | . . . . . . . . . . . . . . . Damage Inflicted 8312 | 73 12 306 146 527 1702 622 410 1266 556 . . 1028 1092 572 Guns 7618 | 73 12 306 146 527 1354 622 410 1266 543 . . 1028 769 562 Cannons 323 | . . . . . . . . . . . . . 323 . Explosions 359 | . . . . . 346 . . . 13 . . . . . Melee 10 | . . . . . . . . . . . . . . 10 Ramming . | . . . . . . . . . . . . . . . Kinetic 4114 | 22 12 306 146 527 1354 622 266 . 104 . . 416 92 247 Thermal 3568 | 51 . . . . 2 . 144 1266 234 . . 612 944 315 Explosive 346 | . . . . . 346 . . . . . . . . . Electromagnetic 274 | . . . . . . . . . 218 . . . 56 . Impact . | . . . . . . . . . . . . . . . Slashing 10 | . . . . . . . . . . . . . . 10 Piercing . | . . . . . . . . . . . . . . . Highest Corruption 4 | . . . . . . . . . . . . . 3 4 Average Corruption 1 | . . . . . . . . . . . . . 1 2 Corruption Purged . | . . . . . . . . . . . . . . . Effects 3 | . . . . . . . . . . . . . 3 . Message Errors 1 | . . . . . . . . . . . . . 1 . Data Loss (minor) 2 | . . . . . . . . . . . . . 2 . Overload Shots 15 | . . . . . . . . 4 . . . 11 . . Effects 1 | . . . . . . . . 1 . . . . . . Energy Bleed 1 | . . . . . . . . 1 . . . . . . Overflow Damage 15 | . . . . . . . . . . . . . 15 . Projectiles 15 | . . . . . . . . . . . . . 15 . Explosions . | . . . . . . . . . . . . . . . Melee . | . . . . . . . . . . . . . . . Knockbacks . | . . . . . . . . . . . . . . . Impact . | . . . . . . . . . . . . . . . Kinetic . | . . . . . . . . . . . . . . . Secondary . | . . . . . . . . . . . . . . . Self-Inflicted Damage . | . . . . . . . . . . . . . . . Shots . | . . . . . . . . . . . . . . . Rammed . | . . . . . . . . . . . . . . . Targets Rammed . | . . . . . . . . . . . . . . . Kicked . | . . . . . . . . . . . . . . . Crushed . | . . . . . . . . . . . . . . . Highest Temperature 375 | 36 6 36 51 110 14 60 89 12 12 . . 24 254 375 Average Temperature 47 | 16 4 12 21 40 7 20 34 6 5 . . 9 98 213 Received Heat Transfer 1083 | . . 81 36 90 . 81 45 207 96 . . 189 165 93 Effects 5 | . . . . . . . . . . . . . . 5 Shutdowns 1 | . . . . . . . . . . . . . . 1 Energy Bleed 1 | . . . . . . . . . . . . . . 1 Interference 2 | . . . . . . . . . . . . . . 2 Matter Decay 1 | . . . . . . . . . . . . . . 1 Siege Activations . | . . . . . . . . . . . . . . . Robots Corrupted . | . . . . . . . . . . . . . . . Combat Hostiles . | . . . . . . . . . . . . . . . Parts Fried 3 | . . . . . . . . . 2 . . . 1 . Impact Corruptions . | . . . . . . . . . . . . . . . Robots Melted . | . . . . . . . . . . . . . . . Combat Hostiles . | . . . . . . . . . . . . . . . Parts Melted 19 | . . . . . . . . 6 1 . . . 11 1 Heat Transferred 5988 | 148 . . . . 18 . 259 2272 444 . . 772 1631 444 Parts Sabotaged . | . . . . . . . . . . . . . . . Parts Stolen . | . . . . . . . . . . . . . . . Parts Stripped . | . . . . . . . . . . . . . . . Power Chain Reactions . | . . . . . . . . . . . . . . . Missiles Intercepted . | . . . . . . . . . . . . . . . Alert | -11 -10 -10 -9 -9 -9 -8 -8 -7 -7 -7 -7 -6 -6 -5 ------- Run | Scr Mat Min Mat Min Exi Min Mat Fac Low Low Dat Pro Fac Fac Peak Influence 510 | 10 51 127 160 279 . 110 155 218 . . . . 120 510 Initial 62 | . 6 19 26 62 . . 25 60 . . . . . 14 Average 107 | 4 14 63 69 171 . 75 80 78 . . . . 21 280 Maximum Alert Level 2 | . . . . 1 . . . 1 . . . . . 2 Low Security (%) 84 | 100 100 100 100 73 . 100 100 95 . . . . 100 29 Level 1 11 | . . . . 26 . . . 4 . . . . . 48 Level 2 3 | . . . . . . . . . . . . . . 22 Level 3 . | . . . . . . . . . . . . . . . Level 4 . | . . . . . . . . . . . . . . . Level 5 . | . . . . . . . . . . . . . . . High Security . | . . . . . . . . . . . . . . . Max Security . | . . . . . . . . . . . . . . . Squads Dispatched 14 | . 2 . . . . . . 4 . . . . 5 3 Investigation 3 | . 1 . . . . . . 1 . . . . 1 . Extermination 4 | . . . . . . . . 2 . . . . 1 1 Reinforcement 4 | . 1 . . . . . . 1 . . . . 1 1 Assault . | . . . . . . . . . . . . . . . Garrison 1 | . . . . . . . . . . . . . . 1 Intercept 2 | . . . . . . . . . . . . . 2 . Construction Impeded . | . . . . . . . . . . . . . . . Haulers Reinforced 1 | . . . . . . . . 1 . . . . . . Stealth | -11 -10 -10 -9 -9 -9 -8 -8 -7 -7 -7 -7 -6 -6 -5 --------- Run | Scr Mat Min Mat Min Exi Min Mat Fac Low Low Dat Pro Fac Fac Distress Signals 5 | . . . . . . . 1 2 . . . . 1 1 Communications Jammed . | . . . . . . . . . . . . . . . Distress Signals . | . . . . . . . . . . . . . . . Times Spotted 123 | . 1 12 2 17 4 6 12 18 6 . . 8 13 24 Peak Tracking Total 8 | . 1 3 1 8 5 3 4 5 3 . . 3 5 6 Tactical Retreats 9 | . . 3 . . . . . . . . . . 1 5 Traps | -11 -10 -10 -9 -9 -9 -8 -8 -7 -7 -7 -7 -6 -6 -5 ------- Run | Scr Mat Min Mat Min Exi Min Mat Fac Low Low Dat Pro Fac Fac Traps Triggered 1 | . . . . . . . . 1 . . . . . . Indirectly . | . . . . . . . . . . . . . . . Trap Hack Attempts . | . . . . . . . . . . . . . . . Triggered . | . . . . . . . . . . . . . . . Disarmed . | . . . . . . . . . . . . . . . Reprogrammed 4 | . . . . . . . . . . . . . . 4 Reused . | . . . . . . . . . . . . . . . Traps Extracted . | . . . . . . . . . . . . . . . Installed . | . . . . . . . . . . . . . . . Triggered . | . . . . . . . . . . . . . . . Machines | -11 -10 -10 -9 -9 -9 -8 -8 -7 -7 -7 -7 -6 -6 -5 ---------- Run | Scr Mat Min Mat Min Exi Min Mat Fac Low Low Dat Pro Fac Fac Machines Disabled 10 | . . . . 1 7 . . 2 . . . . . . Max in Single Turn 2 | . . . . 1 2 . . 2 . . . . . . Garrison Access 1 | . . . . . . . . . . . . . 1 . Machines Sabotaged . | . . . . . . . . . . . . . . . Garrisons Compromised . | . . . . . . . . . . . . . . . Overloaded Fab Kills . | . . . . . . . . . . . . . . . Fab Network Shutdowns 1 | . . . . . . . . . . . . . . 1 Hacking | -11 -10 -10 -9 -9 -9 -8 -8 -7 -7 -7 -7 -6 -6 -5 --------- Run | Scr Mat Min Mat Min Exi Min Mat Fac Low Low Dat Pro Fac Fac Machines Accessed 33 | . 1 1 3 1 2 . 3 4 . . 4 . 7 7 Terminals 19 | . . . 3 1 . . 3 2 . . . . 5 5 Fabricators 3 | . . . . . . . . 1 . . . . 1 1 Repair Stations . | . . . . . . . . . . . . . . . Recycling Units 2 | . 1 . . . . . . 1 . . . . . . Scanalyzers 1 | . . . . . . . . . . . . . . 1 Garrison Access 1 | . . . . . . . . . . . . . 1 . Total Hacks 109 | . 1 1 9 4 5 . 13 10 . . 26 . 15 25 Successful 74 | . 1 1 5 2 5 . 4 4 . . 26 . 8 18 Failed 34 | . . . 4 2 . . 8 6 . . . . 7 7 Catastrophic 9 | . . . 1 2 . . 1 2 . . . . 3 . Database Lockouts 1 | . . . . . . . 1 . . . . . . . Manual 60 | . 1 . 5 4 1 . 13 4 . . . . 11 21 Terminals 63 | . . . 9 4 . . 13 5 . . . . 11 21 Fabricators 8 | . . . . . . . . 3 . . . . 3 2 Repair Stations . | . . . . . . . . . . . . . . . Recycling Units 3 | . 1 . . . . . . 2 . . . . . . Scanalyzers 2 | . . . . . . . . . . . . . . 2 Garrison Access 1 | . . . . . . . . . . . . . 1 . Terminal Hacks 50 | . . 1 5 1 5 . 1 . . . 26 . 2 9 Record 16 | . . . 1 . 4 . . . . . 11 . . . Part Schematic 8 | . . . . 1 . . 1 . . . 6 . . . Robot Schematic 6 | . . . . . . . . . . . 6 . . . Robot Analysis 3 | . . . 3 . . . . . . . . . . . Prototype ID Bank 4 | . . . 1 . . . . . . . 3 . . . Open Door 1 | . . 1 . . . . . . . . . . . . Level Access Points 2 | . . . . . . . . . . . . . 1 1 Branch Access Points 2 | . . . . . . . . . . . . . 1 1 Emergency Access Points 1 | . . . . . . . . . . . . . . 1 Fabricator Index 1 | . . . . . . . . . . . . . . 1 Locate Traps 1 | . . . . . . . . . . . . . . 1 Reprogram Traps 1 | . . . . . . . . . . . . . . 1 Zone Layout 3 | . . . . . . . . . . . . . . 3 EX-Prototype ID Bank 1 | . . . . . 1 . . . . . . . . . Fabricator Hacks 6 | . . . . . . . . 2 . . . . 2 2 Load Schematic 3 | . . . . . . . . 1 . . . . 1 1 Build 3 | . . . . . . . . 1 . . . . 1 1 Repair Station Hacks . | . . . . . . . . . . . . . . . Recycling Unit Hacks 1 | . . . . . . . . 1 . . . . . . Report Inventory 1 | . . . . . . . . 1 . . . . . . Scanalyzer 2 | . . . . . . . . . . . . . . 2 Insert Component 1 | . . . . . . . . . . . . . . 1 Analyze 1 | . . . . . . . . . . . . . . 1 Garrison Access Hacks 1 | . . . . . . . . . . . . . 1 . Seal Access 1 | . . . . . . . . . . . . . 1 . Unauthorized Hacks 14 | . 1 . . 1 . . 3 1 . . . . 3 5 Terminals 13 | . . . . 1 . . 3 1 . . . . 3 5 Track 3 | . . . . 1 . . . . . . . . . 2 Assimilate 1 | . . . . . . . . . . . . . . 1 Botnet 6 | . . . . . . . 2 1 . . . . 2 1 Detonate 1 | . . . . . . . . . . . . . . 1 Disrupt 2 | . . . . . . . 1 . . . . . 1 . Fabricators . | . . . . . . . . . . . . . . . Repair Stations . | . . . . . . . . . . . . . . . Recycling Units 1 | . 1 . . . . . . . . . . . . . Tunnel 1 | . 1 . . . . . . . . . . . . . Scanalyzers . | . . . . . . . . . . . . . . . Garrison Access . | . . . . . . . . . . . . . . . Data Cores Recovered . | . . . . . . . . . . . . . . . Used . | . . . . . . . . . . . . . . . Hacking Detections 22 | . . . 3 1 . . 3 4 . . . . 6 5 Full Trace Events 3 | . . . . 1 . . . 1 . . . . 1 . Feedback Events 1 | . . . . . . . . . . . . . 1 . Corruption 1 | . . . . . . . . . . . . . 1 . Feedback Blocked . | . . . . . . . . . . . . . . . Robot Schematics Acquired 6 | . . . . . . . . . . . 6 . . . Robots Built . | . . . . . . . . . . . . . . . Matter . | . . . . . . . . . . . . . . . Time . | . . . . . . . . . . . . . . . Total Robot Build Rating . | . . . . . . . . . . . . . . . Part Schematics Acquired 9 | . . . . 1 . . 1 . . . 6 . . 1 Parts Built 4 | . . . . . . . . 2 . . . . 1 1 Matter 749 | . . . . . . . . 146 . . . . 285 318 Time 357 | . . . . . . . . 36 . . . . 152 169 Total Part Build Rating 17 | . . . . . . . . 6 . . . . 5 6 Parts Repaired . | . . . . . . . . . . . . . . . Time . | . . . . . . . . . . . . . . . Parts Recycled . | . . . . . . . . . . . . . . . Recycled Matter . | . . . . . . . . . . . . . . . Retrieved Matter . | . . . . . . . . . . . . . . . Retrieved Components . | . . . . . . . . . . . . . . . Parts Scanalyzed 1 | . . . . . . . . . . . . . . 1 Part Schematics Acquired 1 | . . . . . . . . . . . . . . 1 Parts Damaged . | . . . . . . . . . . . . . . . Bothacking | -11 -10 -10 -9 -9 -9 -8 -8 -7 -7 -7 -7 -6 -6 -5 ------------ Run | Scr Mat Min Mat Min Exi Min Mat Fac Low Low Dat Pro Fac Fac Used RIF Installer . | . . . . . . . . . . . . . . . Robots Hacked . | . . . . . . . . . . . . . . . Non-combat . | . . . . . . . . . . . . . . . Combat . | . . . . . . . . . . . . . . . Robot Hacks Applied . | . . . . . . . . . . . . . . . Relay Couplers Released . | . . . . . . . . . . . . . . . Robots Rewired . | . . . . . . . . . . . . . . . Allies Hacked . | . . . . . . . . . . . . . . . Hacks Repelled . | . . . . . . . . . . . . . . . Allies | -11 -10 -10 -9 -9 -9 -8 -8 -7 -7 -7 -7 -6 -6 -5 -------- Run | Scr Mat Min Mat Min Exi Min Mat Fac Low Low Dat Pro Fac Fac Total Allies 7 | . . 4 . . . . . . . . 1 . 1 1 Largest Group 4 | . . 4 1 1 . . . . . . 1 1 1 1 Highest-Rated Group 80 | . . 71 31 31 . . . . . . 59 59 80 26 Highest-Rated Ally 80 | . . 31 31 31 . . . . . . 59 59 80 26 Total Orders . | . . . . . . . . . . . . . . . Ally Attacks 19 | . . 7 3 . . . . . . . . . 9 . Total Damage 158 | . . 49 62 . . . . . . . . . 47 . Kills 2 | . . 1 1 . . . . . . . . . . . Allies Corrupted 1 | . . . . . . . . . . . . . 1 . Allies Melted . | . . . . . . . . . . . . . . . Field Lobotomies 2 | . . . . . . . . . . . 1 . 1 . Intel | -11 -10 -10 -9 -9 -9 -8 -8 -7 -7 -7 -7 -6 -6 -5 ------- Run | Scr Mat Min Mat Min Exi Min Mat Fac Low Low Dat Pro Fac Fac Robot Analysis Total 118 | . . . 3 . . . . . . . 115 . . . Derelict Logs Recovered 10 | . . 2 . 2 . . . . 2 1 . 3 . . Drone Launches . | . . . . . . . . . . . . . . . Drone Recoveries . | . . . . . . . . . . . . . . . Exploration | -11 -10 -10 -9 -9 -9 -8 -8 -7 -7 -7 -7 -6 -6 -5 ------------- Run | Scr Mat Min Mat Min Exi Min Mat Fac Low Low Dat Pro Fac Fac Turns Passed 9070 | 108 64 255 140 677 1693 555 564 1261 674 310 128 574 1149 918 Spaces Moved 5991 | 74 67 209 100 394 921 234 396 946 458 258 94 377 527 936 Core 14 | 2 . . . . 12 . . . . . . . . . Treads 1153 | . . . . 200 649 . . . . . . 90 214 . Legs 493 | . . . . . 260 219 . . . . . . 13 1 Wheels 3385 | 72 67 209 100 194 . 15 396 946 458 258 94 287 289 . Hover . | . . . . . . . . . . . . . . . Flight 946 | . . . . . . . . . . . . . 11 935 Fastest Speed 25 | 50 80 80 90 100 50 120 120 105 105 120 120 120 29 25 Average Speed 120 | 83 80 80 105 138 174 200 123 105 113 120 120 134 157 47 Slowest Speed 360 | 90 80 80 110 180 210 210 125 130 130 120 120 180 205 360 Overloaded Moves . | . . . . . . . . . . . . . . . Propulsion Burnouts . | . . . . . . . . . . . . . . . Robots Hopped 5 | . . . . . . . . . . . . . . 5 Cave-ins Triggered . | . . . . . . . . . . . . . . . Exploration Rate (%) 40 | 5 19 40 14 56 81 62 28 28 49 49 80 64 15 15 Regions Visited 14 Branch Regions 8 Pre-discovered Areas 26 | . 1 . . . 1 . . . . . 24 . . . Known Exits Taken 2 | . . . . . . . . 1 . . . . 1 . Unknown Exits Taken 12 | 1 1 1 1 1 1 1 1 . 1 1 1 1 . . Scrap Searched 5 | . . . . 3 . . . . 1 . . 1 . . Spaces Dug 19 | . . . . . . . . . 16 . . . . 3 Terrain Destroyed 69 | . . . . . 47 . . . 19 . . . . 3 Melee . | . . . . . . . . . . . . . . . Projectile 38 | . . . . . 16 . . . 19 . . . . 3 AOE 31 | . . . . . 31 . . . . . . . . . Terrain Rammed . | . . . . . . . . . . . . . . . Walls Destroyed . | . . . . . . . . . . . . . . . Machines Disabled . | . . . . . . . . . . . . . . . Actions | -11 -10 -10 -9 -9 -9 -8 -8 -7 -7 -7 -7 -6 -6 -5 --------- Run | Scr Mat Min Mat Min Exi Min Mat Fac Low Low Dat Pro Fac Fac Total 7426 | 107 79 273 124 474 996 270 443 1137 547 258 105 412 814 1387 Wait 775 | 9 . 34 6 20 11 1 10 91 6 1 7 4 197 378 Move 5969 | 73 66 208 99 393 920 233 395 945 457 257 93 376 526 928 Hop 3 | . . . . . . . . . . . . . . 3 Pick Up 102 | 8 4 6 5 5 14 1 7 18 8 . . 3 16 7 Fast Attach 74 | 8 2 4 . 3 13 3 4 7 8 . . 1 16 5 Attach 32 | . . . 2 2 3 . . 4 4 . . 1 4 12 Detach 25 | . 1 . . 1 5 2 1 3 1 . . 1 6 4 Swap 39 | 1 . . 2 3 3 . 2 5 3 . 4 2 9 5 Drop 123 | 3 5 6 3 9 17 . 7 23 10 . . 4 15 21 Fire 280 | 5 1 15 7 38 10 30 17 41 50 . 1 20 25 20 Melee 4 | . . . . . . . . . . . . . . 4 Ram . | . . . . . . . . . . . . . . . Kick . | . . . . . . . . . . . . . . . Crush . | . . . . . . . . . . . . . . . Escape Stasis . | . . . . . . . . . . . . . . . Rewire . | . . . . . . . . . . . . . . . Trap . | . . . . . . . . . . . . . . . Miscellaneous . | . . . . . . . . . . . . . . . Route ------- -11/Scrapyard -10/Materials -10/Mines -9/Materials -9/Mines (discovered 2 exits: *Mat / *Exi) -9/Exiles -8/Mines -8/Materials -7/Factory (discovered 2 exits: Sto / *Low) -7/Lower Caves -7/Lower Caves -7/Data Miner -6/Proximity Caves -6/Factory (discovered 6 exits: *Fac x4 / Low x2) -5/Factory (discovered 6 exits: Fac x4 / Upp x2) History --------- Turn | Location | Event 24 | -11/Scrapyard | Discovered new exit (range 16) 109 | -11/Scrapyard | Entered Materials 155 | -10/Materials | Discovered new exit (range 8) 173 | -10/Materials | Entered Mines 177 | -10/Mines | Found the Drone Emporium 187 | -10/Mines | Found Prototype Device 187 | -10/Mines | Identified Bomb Drone Bay 330 | -10/Mines | Build established: Mutant 332 | -10/Mines | Received a Mining Laser from a helpful Derelict 352 | -10/Mines | Learned Materials non-interactive machine intel 361 | -10/Mines | Assisted by bots powering up and referring to "LRC-V3" 391 | -10/Mines | Discovered new exit (range 14) 428 | -10/Mines | Entered Materials 428 | -9/Materials | Accompanied by 1 ally 428 | -9/Materials | Evolved 2 slots: Utility x2 429 | -9/Materials | Loaded intel: 52 non-interactive machine locations 542 | -9/Materials | Discovered new exit (range 12) 568 | -9/Materials | Entered Mines 568 | -9/Mines | Accompanied by 1 ally 601 | -9/Mines | Met a Derelict bent on vengeance 667 | -9/Mines | Assembled infested the area 727 | -9/Mines | Deemed a non-threat by the Exiles lab entrance 728 | -9/Mines | Discovered new exit (range 5) 757 | -9/Mines | Discovered new exit (range 16) 818 | -9/Mines | Learned Materials terminal intel 1158 | -9/Mines | Build established: Scavenger-Mutant 1245 | -9/Mines | Entered Exiles 1284 | -9/Exiles | Met 8R-AWN 1313 | -9/Exiles | Met EX-HEX 1367 | -9/Exiles | Met EX-BIN 1385 | -9/Exiles | Aligned with FarCom system 1386 | -9/Exiles | Given EX-Vault access code 1425 | -9/Exiles | Opened EX-Vault 1430 | -9/Exiles | Found Prototype Ballistic Gun 1430 | -9/Exiles | Identified AWS/Gauss 1470 | -9/Exiles | Build established: Mutant 1470 | -9/Exiles | Warned to stay clear of 0b10 Research branches 1732 | -9/Exiles | Met EX-DEC 1766 | -9/Exiles | Learned location of Zion (-6) 1839 | -9/Exiles | Visited The Gauntlet 2259 | -9/Exiles | Attacked by the Exiles 2383 | -9/Exiles | Destroyed 8R-AWN 2389 | -9/Exiles | Found Prototype Ballistic Gun 2389 | -9/Exiles | Identified 8R-AWN's Boregun 2398 | -9/Exiles | Found Prototype Processor 2398 | -9/Exiles | Identified Exp. Targeting Computer 2400 | -9/Exiles | Lost 6 parts (1p2n3u) 2686 | -9/Exiles | Found PSU Rigger 2689 | -9/Exiles | Found Field Lobotomy Kit 2789 | -9/Exiles | Build established: Hauler-Mutant 2912 | -9/Exiles | Discovered new exit (range 14) 2938 | -9/Exiles | Stole three prototypes: PSU Rigger, AWS/Gauss, Field Lobotomy Kit 2938 | -9/Exiles | Entered Mines 2943 | -8/Mines | Core integrity fell below 50% 3424 | -8/Mines | Discovered new exit (range 15) 3493 | -8/Mines | Entered Materials 3493 | -8/Materials | Evolved 2 slots: Utility x2 3494 | -8/Materials | Loaded intel: 12 terminal locations 3761 | -8/Materials | Discovered new exit (range 20) 3867 | -8/Materials | Central database locked down 4057 | -8/Materials | Entered Factory 4057 | -7/Factory | Evolved 2 slots: Utility x2 4058 | -7/Factory | Identified exit to Storage 4058 | -7/Factory | Identified exit to Lower Caves 4399 | -7/Factory | Build established: Scavenger-Mutant 4477 | -7/Factory | Fabricated Adv. Signal Interpreter (x2) 4848 | -7/Factory | Found Prototype Launcher 4848 | -7/Factory | Identified Rocket Array 5318 | -7/Factory | Entered Lower Caves 5460 | -7/Lower Caves | Learned 4 Factory zone layouts 5477 | -7/Lower Caves | Spotted B-75 Beast 5634 | -7/Lower Caves | Lost 3 parts (1n1u1w) 5639 | -7/Lower Caves | Destroyed B-75 Beast 5884 | -7/Lower Caves | Found Alien Artifact 5884 | -7/Lower Caves | Identified Core Expander 5884 | -7/Lower Caves | Installed Core Expander, added new Propulsion slot 5973 | -7/Lower Caves | Learned location of 1 exit from Factory 5981 | -7/Lower Caves | Discovered new exit (range 9) 5985 | -7/Lower Caves | Spotted 41-7N2(f) 5986 | -7/Lower Caves | Spotted KD-DV5(f) 5987 | -7/Lower Caves | Encountered a Master Thief 5987 | -7/Lower Caves | Encountered a Master Thief 5992 | -7/Lower Caves | Entered another Lower Caves area 5993 | -7/Lower Caves | Encountered a Warlord checkpoint 6225 | -7/Lower Caves | Learned Factory stockpile data 6287 | -7/Lower Caves | Discovered new exit (range 13) 6302 | -7/Lower Caves | Entered Data Miner 6302 | -7/Data Miner | Discovered new exit (range 6) 6318 | -7/Data Miner | Met Data Miner 6348 | -7/Data Miner | Learned location of Section 7 (-2) 6348 | -7/Data Miner | Acquired the access code to Warlord's prototype stash 6368 | -7/Data Miner | Received God Mode back door access code from Data Miner 6381 | -7/Data Miner | Assimilated Data Miner with FLK Orb 6386 | -7/Data Miner | Interfaced with the Data Conduit 6430 | -7/Data Miner | Entered Proximity Caves 6430 | -6/Proximity Caves | Accompanied by 1 ally (Data Miner) 6475 | -6/Proximity Caves | Learned Factory trap positions 6509 | -6/Proximity Caves | Learned Factory terminal intel 6526 | -6/Proximity Caves | Spotted B-75 Beast 6585 | -6/Proximity Caves | Destroyed B-75 Beast 6621 | -6/Proximity Caves | Learned Factory terminal intel 6632 | -6/Proximity Caves | Spotted B7-FR1(f) 6633 | -6/Proximity Caves | Encountered a Master Thief 6647 | -6/Proximity Caves | Destroyed B7-FR1(f) 6648 | -6/Proximity Caves | Attracted the attention of an 0b10 checkpoint 6699 | -6/Proximity Caves | Found Prototype Hackware 6699 | -6/Proximity Caves | Identified System Mapper 6992 | -6/Proximity Caves | Discovered new exit (range 11) 7004 | -6/Proximity Caves | Entered Factory 7004 | -6/Factory | Evolved 2 slots: Utility x2 7005 | -6/Factory | Identified exit to Factory 7007 | -6/Factory | Loaded intel: 93 trap records 7009 | -6/Factory | Loaded intel: 272 machine locations 7010 | -6/Factory | Loaded intel: 20 terminal locations 7259 | -6/Factory | Fabricated Exp. Sensor Array (x1) 7608 | -6/Factory | Build established: Hacker-Mutant 7715 | -6/Factory | Lost 3 parts (2n1w) 7864 | -6/Factory | Identified exit to Lower Caves 8086 | -6/Factory | Intercept squad dispatched 8106 | -6/Factory | Spotted Tracker 8117 | -6/Factory | Assimilated Tracker with FLK Orb 8127 | -6/Factory | Spotted Combat Programmer 8153 | -6/Factory | Entered another Factory area 8153 | -5/Factory | Evolved 2 slots: Utility x2 8154 | -5/Factory | Loaded intel: 294 machine locations 8155 | -5/Factory | Loaded intel: 20 terminal locations 8206 | -5/Factory | Identified exit to Factory 8349 | -5/Factory | Local fabrication network quarantined 8385 | -5/Factory | Fabricated Exp. Cesium-ion Thruster (x1) 8541 | -5/Factory | Identified exit to Upper Caves 8869 | -5/Factory | Spotted B-75 Beast 9041 | -5/Factory | Garrison activated, responded to threat 9071 | -5/Factory | Self-destructed Last Messages --------------- Acquired 78 matter. HV Slug penetrates G-50 Soldier. HV Slug penetrates R-10 Processor. R-10 Processor suffers critical hit. R-10 Processor destroyed. HV Slug penetrates G-50 Soldier. HV Slug penetrates Wall. G-50 Soldier destroyed. HV Slug penetrates Wall. Power failure, Lgt. Antimatter Reactor shutdown. HV Slug penetrates Wall. R-10 Processor collects Com. Wheel. Overheating: Matter decay (-15). Imp. Cooling System destroyed. R-10 Processor collects Com. Wheel. HV Slug penetrates Wall. Overheating: System interference. Adv. Signal Interpreter temporarily disabled. 8R-AWN's Boregun temporarily disabled. Imp. Hacking Suite destroyed. Map ----- +----------------------------------------------------+ | "" """ # ??????????????????????????????? | | "" """ # ??????????????????????????????? | | ""?"""???????????????????????????????????????????" | | ""??""????????""""""?????????????????????????????" | | ""??""????????""""""?????????????????????????????" | | ??????????????""""""?????????????????????????????? | | ??????????????""""""? ???????????????????????????? | | ??????????????????? ?????"""???????????????????? | | ??????????????"""""" ?????"""??????#????????????? | | ??u???????????"""""" ????"""????? #???????????## | | ??????????????"""""" ??? ??????? #???????????# | | ??????????????"""""" ?#] """????? #???????????# | | ????????????????? # ?"""????# #???????????#! | | ????????????"""?""" +??"""???? +???????????#% | | ????????????"""G""" #????????? #???????????# | | ????????????????????# ########## ########+#???? | | ?????#######????????# ^ #???? | | ?????# ########## #??# #???? | | ?????# ^ #??# #???? | | ?????# T = #??# #???? | | ?????# % ==#####+##+#??# ##### | | ?????# #######l#######!#?# #??# | | ?????#######?# #?#%#?# | #??# # | | ?????????????# #?#=#?# #??# ###### # | | ?????????????# ###*#?# """ #### #????# # | | ?????????????# p/%@=#?# """ + ######+# | | ?????????????# [#####?# """ ####### | | ?????????????# #?????########?????# [ | | ?????????????# #??????????????????# [ | | ?????????????# #??????????????????# | | ?????????????###########??????????????????######## | | | | | | | | | | | | | | | | | | | | | | | | | | | | | | | | | | | | | | | +----------------------------------------------------+ Best States ------------- Heat Dissipation 94 Energy Generation 21 Energy Capacity 310 Matter Stores 300 Matter Capacity 300 Sight Range 22 Robot Scan Range 30 Terrain Scan Density 10 Additional Mass Support 12 Armor Coverage 600 Resistance: TH 15 Weapon Shielding 33 Weapon Cycling 25 Evasion (%) 65 Targeting Accuracy 12 Recoil Reduction 2 Energy Filtering 30 Offensive Hacking 44 Defensive Hacking 20 Item Schematics ----------------- Hcp. Storage Unit | -9/Mines | Hacked Adv. Signal Interpreter | -8/Materials | Hacked Combat Drone Bay | -7/Data Miner | Free Lgt. Regenerative Plating | -7/Data Miner | Free Exp. Flexi-carbon Leg | -7/Data Miner | Free Exp. Cesium-ion Thruster | -7/Data Miner | Free Exp. Sensor Array | -7/Data Miner | Free Exp. Terrain Scan Processor | -7/Data Miner | Free Cld. VTOL Module | -5/Factory | Scanalyzed Robot Schematics ------------------ S-27 Virus | -7/Data Miner | Free G-50 Soldier | -7/Data Miner | Free G-67 Veteran | -7/Data Miner | Free H-66 Slayer | -7/Data Miner | Free P-70 Sage | -7/Data Miner | Free I-36 Angel | -7/Data Miner | Free Fabricated ------------ Adv. Signal Interpreter | x2 | -7/Factory Exp. Sensor Array | x1 | -6/Factory Exp. Cesium-ion Thruster | x1 | -5/Factory Alien Tech Used ----------------- Core Expander Achievements -------------- None Challenges ------------ None Game ------ Seed MachineDisposableAutocannon Manual? 0 Play Time 01:28:00 Cumulative 253.9 hours Start 2020.09.15 @ 16:21:18 End 2020.09.15 @ 20:57:35 Sessions 3 Manual Loads 0 Difficulty Rogue Special Mode None Game No. 258 Rogue 258 Adventurer 0 Explorer 0 Win Type - Total 13 Types 9/0/3/1/0/0/0/0/0 Lore% 80 Gallery% 88 Achievement% 71 Wizard Run 0 Options --------- ASCII 0 Keyboard 1 Movement Numpad Keybinds 0 Fullscreen 1 Font 18/SmallcapsGlow Map View 76x50 Tactical HUD 1 Map Filters NONE Filters NONE Steam 1 RUN: be80a99e-63f4-4975-b0b4-d1fb77031a2f